[Event "Titled Tuesday Blitz March 22 Early 2022"]
[White "Bongo Akanga Ndjila, Barthelemy"]
[Black "Baches Garcia, Guillermo"]
[WhiteFideId "10609431"]
[BlackFideId "2209764"]
[WhiteElo "1803"]
[BlackElo "2461"]
[Result "0-1"]
[Round "02"]
[TimeControl "180+1"]
[Date "2022.03.22"]
[WhiteClock "0:00:43"]
[BlackClock "0:01:29"]

1. d4 {[%clk 0:03:00]}  Nf6 {[%clk 0:02:59]} 2. Nf3 {[%clk 0:03:00]}  e6 {[%clk 0:03:00]} 3. Bf4 {[%clk 0:02:54]}  d5 {[%clk 0:02:59]} 4. Nbd2 {[%clk 0:02:52]}  c5 {[%clk 0:02:59]} 5. c3 {[%clk 0:02:48]}  Nc6 {[%clk 0:02:59]} 6. Bg5 {[%clk 0:02:44]}  h6 {[%clk 0:02:53]} 7. Bxf6 {[%clk 0:02:42]}  Qxf6 {[%clk 0:02:53]} 8. e4 {[%clk 0:02:42]}  cxd4 {[%clk 0:02:48]} 9. exd5 {[%clk 0:02:27]}  exd5 {[%clk 0:02:38]} 10. Bb5 {[%clk 0:02:18]}  dxc3 {[%clk 0:02:28]} 11. bxc3 {[%clk 0:02:17]}  Bc5 {[%clk 0:02:20]} 12. Qe2+ {[%clk 0:02:09]}  Be6 {[%clk 0:02:14]} 13. O-O {[%clk 0:02:08]}  O-O {[%clk 0:02:13]} 14. Bxc6 {[%clk 0:01:59]}  bxc6 {[%clk 0:02:13]} 15. Ne5 {[%clk 0:01:59]}  Rfe8 {[%clk 0:02:00]} 16. Nxc6 {[%clk 0:01:43]}  Bd7 {[%clk 0:01:55]} 17. Qa6 {[%clk 0:01:25]}  Qxc6 {[%clk 0:01:54]} 18. Qd3 {[%clk 0:01:22]}  Rac8 {[%clk 0:01:45]} 19. Nb3 {[%clk 0:01:21]}  Bb6 {[%clk 0:01:42]} 20. Rac1 {[%clk 0:01:19]}  Qc4 {[%clk 0:01:38]} 21. Qg3 {[%clk 0:01:10]}  Re2 {[%clk 0:01:34]} 22. Nd4 {[%clk 0:00:46]}  Bxd4 {[%clk 0:01:30]} 23. cxd4 {[%clk 0:00:45]}  Qxc1 {[%clk 0:01:30]} 24. Rxc1 {[%clk 0:00:43]}  Rxc1# {[%clk 0:01:29]} 0-1


[Site "https://www.chess.com"]

[Event "Titled Tuesday Blitz March 22 Early 2022"]
[White "Brunner, Nicolas"]
[Black "Bryakin, Mikhail"]
[WhiteFideId "620246"]
[BlackFideId "4165314"]
[WhiteElo "2372"]
[BlackElo "2417"]
[Result "0-1"]
[Round "02"]
[TimeControl "180+1"]
[Date "2022.03.22"]
[WhiteClock "0:00:22"]
[BlackClock "0:00:57"]

1. d4 {[%clk 0:03:00]}  Nf6 {[%clk 0:02:57]} 2. c4 {[%clk 0:03:01]}  e5 {[%clk 0:02:58]} 3. dxe5 {[%clk 0:02:59]}  Ng4 {[%clk 0:02:58]} 4. Nf3 {[%clk 0:02:55]}  Nc6 {[%clk 0:02:59]} 5. e3 {[%clk 0:02:48]}  Bb4+ {[%clk 0:02:56]} 6. Bd2 {[%clk 0:02:47]}  Bxd2+ {[%clk 0:02:55]} 7. Qxd2 {[%clk 0:02:47]}  Ngxe5 {[%clk 0:02:52]} 8. Nxe5 {[%clk 0:02:47]}  Nxe5 {[%clk 0:02:53]} 9. Be2 {[%clk 0:02:48]}  d6 {[%clk 0:02:52]} 10. O-O {[%clk 0:02:47]}  O-O {[%clk 0:02:52]} 11. Nc3 {[%clk 0:02:48]}  a5 {[%clk 0:02:48]} 12. b3 {[%clk 0:02:47]}  b6 {[%clk 0:02:40]} 13. f4 {[%clk 0:02:47]}  Ng6 {[%clk 0:02:37]} 14. Bf3 {[%clk 0:02:47]}  Rb8 {[%clk 0:02:37]} 15. g3 {[%clk 0:02:39]}  Bb7 {[%clk 0:02:36]} 16. e4 {[%clk 0:02:38]}  Re8 {[%clk 0:02:32]} 17. Rae1 {[%clk 0:02:37]}  Nf8 {[%clk 0:02:26]} 18. Bg2 {[%clk 0:02:30]}  Ne6 {[%clk 0:02:26]} 19. Kh1 {[%clk 0:02:24]}  Nc5 {[%clk 0:02:24]} 20. Qd4 {[%clk 0:02:16]}  Qf6 {[%clk 0:02:19]} 21. Qxf6 {[%clk 0:02:13]}  gxf6 {[%clk 0:02:20]} 22. Nd5 {[%clk 0:01:40]}  Bxd5 {[%clk 0:02:19]} 23. exd5 {[%clk 0:01:40]}  Nd3 {[%clk 0:02:09]} 24. Rd1 {[%clk 0:01:37]}  Re3 {[%clk 0:02:09]} 25. Rd2 {[%clk 0:01:32]}  Rbe8 {[%clk 0:02:08]} 26. Kg1 {[%clk 0:01:32]}  Nc5 {[%clk 0:02:05]} 27. Rf3 {[%clk 0:01:22]}  Re2 {[%clk 0:01:59]} 28. Rf2 {[%clk 0:01:21]}  Re1+ {[%clk 0:01:55]} 29. Rf1 {[%clk 0:01:21]}  R1e7 {[%clk 0:01:48]} 30. Kf2 {[%clk 0:01:19]}  Kg7 {[%clk 0:01:48]} 31. Bf3 {[%clk 0:01:16]}  f5 {[%clk 0:01:48]} 32. Rfd1 {[%clk 0:01:13]}  Kf6 {[%clk 0:01:40]} 33. Rd4 {[%clk 0:01:06]}  Re3 {[%clk 0:01:37]} 34. R1d2 {[%clk 0:01:02]}  Rc3 {[%clk 0:01:34]} 35. Re2 {[%clk 0:00:59]}  Rxe2+ {[%clk 0:01:30]} 36. Kxe2 {[%clk 0:00:58]}  Rc1 {[%clk 0:01:29]} 37. Rd1 {[%clk 0:00:57]}  Rc3 {[%clk 0:01:27]} 38. Rd2 {[%clk 0:00:52]}  a4 {[%clk 0:01:24]} 39. b4 {[%clk 0:00:47]}  Ne4 {[%clk 0:01:19]} 40. Bxe4 {[%clk 0:00:42]}  fxe4 {[%clk 0:01:19]} 41. Rd4 {[%clk 0:00:41]}  Rc2+ {[%clk 0:01:15]} 42. Ke3 {[%clk 0:00:41]}  Rxh2 {[%clk 0:01:15]} 43. Rxe4 {[%clk 0:00:39]}  Rxa2 {[%clk 0:01:14]} 44. Re8 {[%clk 0:00:38]}  Rb2 {[%clk 0:01:12]} 45. b5 {[%clk 0:00:37]}  Rb3+ {[%clk 0:01:12]} 46. Kf2 {[%clk 0:00:37]}  a3 {[%clk 0:01:11]} 47. Rc8 {[%clk 0:00:36]}  Rb4 {[%clk 0:01:07]} 48. Ra8 {[%clk 0:00:34]}  Rxc4 {[%clk 0:01:06]} 49. Rxa3 {[%clk 0:00:33]}  Rc5 {[%clk 0:01:07]} 50. Ra7 {[%clk 0:00:33]}  Ke7 {[%clk 0:01:07]} 51. Kf3 {[%clk 0:00:32]}  Kd7 {[%clk 0:01:07]} 52. Ke4 {[%clk 0:00:32]}  Rxb5 {[%clk 0:01:08]} 53. Ra8 {[%clk 0:00:32]}  Rb3 {[%clk 0:01:08]} 54. g4 {[%clk 0:00:32]}  Ke7 {[%clk 0:01:08]} 55. Rh8 {[%clk 0:00:32]}  Rb4+ {[%clk 0:01:07]} 56. Kf5 {[%clk 0:00:32]}  Rd4 {[%clk 0:01:08]} 57. Rxh7 {[%clk 0:00:30]}  Rxd5+ {[%clk 0:01:08]} 58. Ke4 {[%clk 0:00:31]}  Ra5 {[%clk 0:01:07]} 59. g5 {[%clk 0:00:31]}  Ke6 {[%clk 0:01:06]} 60. Rh8 {[%clk 0:00:31]}  d5+ {[%clk 0:01:04]} 61. Kf3 {[%clk 0:00:32]}  Kf5 {[%clk 0:01:03]} 62. Rf8 {[%clk 0:00:27]}  Ra3+ {[%clk 0:01:04]} 63. Ke2 {[%clk 0:00:27]}  Ke6 {[%clk 0:00:59]} 64. Re8+ {[%clk 0:00:25]}  Kd7 {[%clk 0:01:00]} 65. Rf8 {[%clk 0:00:25]}  Ke7 {[%clk 0:00:59]} 66. Rc8 {[%clk 0:00:25]}  c5 {[%clk 0:00:57]} 67. f5 {[%clk 0:00:25]}  Rg3 {[%clk 0:00:58]} 68. Rc7+ {[%clk 0:00:24]}  Kd6 {[%clk 0:00:58]} 69. Rxf7 {[%clk 0:00:23]}  Rxg5 {[%clk 0:00:58]} 70. Rf6+ {[%clk 0:00:24]}  Ke5 {[%clk 0:00:58]} 71. Rxb6 {[%clk 0:00:22]}  Rxf5 {[%clk 0:00:58]} 72. Rb8 {[%clk 0:00:22]}  Kd4 {[%clk 0:00:57]} 0-1


[Site "https://www.chess.com"]

[Event "Titled Tuesday Blitz March 22 Early 2022"]
[White "Buscar, Michael"]
[Black "Agasarov, Benik"]
[WhiteFideId "2603616"]
[BlackFideId "13314823"]
[WhiteElo "2010"]
[BlackElo "2557"]
[Result "0-1"]
[Round "02"]
[TimeControl "180+1"]
[Date "2022.03.22"]
[WhiteClock "0:01:15"]
[BlackClock "0:02:16"]

1. c4 {[%clk 0:02:55]}  e5 {[%clk 0:02:59]} 2. Nf3 {[%clk 0:02:53]}  Nc6 {[%clk 0:02:58]} 3. g3 {[%clk 0:02:53]}  e4 {[%clk 0:02:56]} 4. Ng1 {[%clk 0:02:52]}  Nf6 {[%clk 0:02:56]} 5. Bg2 {[%clk 0:02:53]}  Bc5 {[%clk 0:02:55]} 6. Nc3 {[%clk 0:02:50]}  Qe7 {[%clk 0:02:51]} 7. d3 {[%clk 0:02:42]}  exd3 {[%clk 0:02:42]} 8. Qxd3 {[%clk 0:02:42]}  Ne5 {[%clk 0:02:42]} 9. Qf5 {[%clk 0:02:31]}  d6 {[%clk 0:02:38]} 10. Qg5 {[%clk 0:02:30]}  Nd3+ {[%clk 0:02:35]} 11. Kf1 {[%clk 0:02:26]}  Nxf2 {[%clk 0:02:33]} 12. Qxg7 {[%clk 0:02:26]}  Rg8 {[%clk 0:02:33]} 13. Qh6 {[%clk 0:02:26]}  Nxh1 {[%clk 0:02:30]} 14. Bxh1 {[%clk 0:02:27]}  Ng4 {[%clk 0:02:30]} 15. Qxh7 {[%clk 0:02:22]}  Qf6+ {[%clk 0:02:29]} 16. Nf3 {[%clk 0:02:16]}  Rh8 {[%clk 0:02:28]} 17. Qe4+ {[%clk 0:02:03]}  Qe6 {[%clk 0:02:27]} 18. Qf4 {[%clk 0:01:21]}  Nxh2+ {[%clk 0:02:22]} 19. Nxh2 {[%clk 0:01:14]}  Rxh2 {[%clk 0:02:22]} 20. Bg2 {[%clk 0:01:15]}  Rxg2 {[%clk 0:02:16]} 21. Kxg2 {[%clk 0:01:15]}  Qh3+ {[%clk 0:02:16]} 22. Kf3 {[%clk 0:01:15]}  Qh1# {[%clk 0:02:16]} 0-1


[Site "https://www.chess.com"]

[Event "Titled Tuesday Blitz March 22 Early 2022"]
[White "Chen, Qi b"]
[Black "Grandelius, Nils"]
[WhiteFideId "8614733"]
[BlackFideId "1710400"]
[WhiteElo "2432"]
[BlackElo "2617"]
[Result "1/2-1/2"]
[Round "02"]
[TimeControl "180+1"]
[Date "2022.03.22"]
[WhiteClock "0:00:10"]
[BlackClock "0:00:15"]

1. e4 {[%clk 0:03:00]}  c6 {[%clk 0:03:00]} 2. d4 {[%clk 0:02:59]}  d5 {[%clk 0:03:00]} 3. e5 {[%clk 0:02:59]}  c5 {[%clk 0:03:01]} 4. Nf3 {[%clk 0:02:58]}  cxd4 {[%clk 0:03:00]} 5. Nxd4 {[%clk 0:02:53]}  Nc6 {[%clk 0:03:01]} 6. Nxc6 {[%clk 0:02:53]}  bxc6 {[%clk 0:03:02]} 7. Bd3 {[%clk 0:02:53]}  e6 {[%clk 0:03:01]} 8. O-O {[%clk 0:02:53]}  Ne7 {[%clk 0:03:01]} 9. Nd2 {[%clk 0:02:50]}  Ng6 {[%clk 0:03:01]} 10. Nf3 {[%clk 0:02:50]}  Be7 {[%clk 0:02:50]} 11. Re1 {[%clk 0:02:49]}  O-O {[%clk 0:02:44]} 12. c4 {[%clk 0:02:40]}  f6 {[%clk 0:02:23]} 13. exf6 {[%clk 0:02:38]}  Bxf6 {[%clk 0:02:24]} 14. Qc2 {[%clk 0:02:29]}  Qe8 {[%clk 0:02:12]} 15. Bxg6 {[%clk 0:01:26]}  Qxg6 {[%clk 0:02:13]} 16. Qxg6 {[%clk 0:01:25]}  hxg6 {[%clk 0:02:14]} 17. Ne5 {[%clk 0:01:21]}  Ba6 {[%clk 0:01:40]} 18. cxd5 {[%clk 0:01:07]}  exd5 {[%clk 0:01:18]} 19. Nd7 {[%clk 0:00:56]}  Rfe8 {[%clk 0:01:12]} 20. Nxf6+ {[%clk 0:00:56]}  gxf6 {[%clk 0:01:13]} 21. Bd2 {[%clk 0:00:44]}  Kf7 {[%clk 0:01:13]} 22. f3 {[%clk 0:00:39]}  Rab8 {[%clk 0:00:47]} 23. b3 {[%clk 0:00:37]}  c5 {[%clk 0:00:45]} 24. Rxe8 {[%clk 0:00:35]}  Rxe8 {[%clk 0:00:45]} 25. Re1 {[%clk 0:00:34]}  Rc8 {[%clk 0:00:46]} 26. Rc1 {[%clk 0:00:31]}  Bd3 {[%clk 0:00:42]} 27. Be3 {[%clk 0:00:17]}  c4 {[%clk 0:00:42]} 28. bxc4 {[%clk 0:00:16]}  dxc4 {[%clk 0:00:43]} 29. Bxa7 {[%clk 0:00:15]}  Ra8 {[%clk 0:00:44]} 30. Bd4 {[%clk 0:00:16]}  Rxa2 {[%clk 0:00:44]} 31. h4 {[%clk 0:00:14]}  Ra5 {[%clk 0:00:17]} 32. Kh2 {[%clk 0:00:13]}  Rd5 {[%clk 0:00:17]} 33. Bc3 {[%clk 0:00:13]}  Rd6 {[%clk 0:00:16]} 34. Ra1 {[%clk 0:00:12]}  g5 {[%clk 0:00:16]} 35. Kg3 {[%clk 0:00:11]}  gxh4+ {[%clk 0:00:14]} 36. Kxh4 {[%clk 0:00:11]}  Kg6 {[%clk 0:00:15]} 37. g4 {[%clk 0:00:11]}  Be2 {[%clk 0:00:15]} 38. f4 {[%clk 0:00:09]}  f5 {[%clk 0:00:14]} 39. Be5 {[%clk 0:00:07]}  Re6 {[%clk 0:00:15]} 40. g5 {[%clk 0:00:06]}  Rc6 {[%clk 0:00:14]} 41. Rc1 {[%clk 0:00:06]}  Kf7 {[%clk 0:00:13]} 42. Kg3 {[%clk 0:00:06]}  Ke6 {[%clk 0:00:13]} 43. Kf2 {[%clk 0:00:06]}  Bd3 {[%clk 0:00:13]} 44. Ke3 {[%clk 0:00:07]}  Kd5 {[%clk 0:00:13]} 45. Rg1 {[%clk 0:00:07]}  Rg6 {[%clk 0:00:12]} 46. Rh1 {[%clk 0:00:06]}  Be4 {[%clk 0:00:11]} 47. Rh6 {[%clk 0:00:07]}  Rg8 {[%clk 0:00:10]} 48. Rh8 {[%clk 0:00:06]}  Rxh8 {[%clk 0:00:08]} 49. Bxh8 {[%clk 0:00:07]}  Ke6 {[%clk 0:00:09]} 50. Kd4 {[%clk 0:00:06]}  Bd3 {[%clk 0:00:09]} 51. Be5 {[%clk 0:00:07]}  Bf1 {[%clk 0:00:10]} 52. Ke3 {[%clk 0:00:07]}  Kf7 {[%clk 0:00:09]} 53. Bc3 {[%clk 0:00:07]}  Bg2 {[%clk 0:00:09]} 54. Be5 {[%clk 0:00:07]}  Bd5 {[%clk 0:00:09]} 55. Bc3 {[%clk 0:00:08]}  Be6 {[%clk 0:00:10]} 56. Be5 {[%clk 0:00:09]}  Kg6 {[%clk 0:00:11]} 57. Bc3 {[%clk 0:00:09]}  Bf7 {[%clk 0:00:11]} 58. Kd4 {[%clk 0:00:09]}  Kh5 {[%clk 0:00:11]} 59. Ke3 {[%clk 0:00:09]}  Kg4 {[%clk 0:00:11]} 60. Bd4 {[%clk 0:00:09]}  Bg6 {[%clk 0:00:11]} 61. Be5 {[%clk 0:00:08]}  Bf7 {[%clk 0:00:11]} 62. Kd4 {[%clk 0:00:08]}  Kf3 {[%clk 0:00:11]} 63. g6 {[%clk 0:00:08]}  Bxg6 {[%clk 0:00:10]} 64. Kxc4 {[%clk 0:00:09]}  Ke3 {[%clk 0:00:11]} 65. Kd5 {[%clk 0:00:09]}  Kf3 {[%clk 0:00:11]} 66. Ke6 {[%clk 0:00:10]}  Kg4 {[%clk 0:00:11]} 67. Kf6 {[%clk 0:00:10]}  Be8 {[%clk 0:00:12]} 68. Bd6 {[%clk 0:00:10]}  Ba4 {[%clk 0:00:13]} 69. Ke5 {[%clk 0:00:10]}  Bc2 {[%clk 0:00:13]} 70. Be7 {[%clk 0:00:10]}  Bd1 {[%clk 0:00:14]} 71. Bd6 {[%clk 0:00:10]}  Be2 {[%clk 0:00:15]} 1/2-1/2


[Site "https://www.chess.com"]

[Event "Titled Tuesday Blitz March 22 Early 2022"]
[White "Chincholimath, Halsagar"]
[Black "Milanovic, Marko"]
[WhiteFideId "5022487"]
[BlackFideId "980129"]
[WhiteElo "1737"]
[BlackElo "2159"]
[Result "0-1"]
[Round "02"]
[TimeControl "180+1"]
[Date "2022.03.22"]
[WhiteClock "0:00:40"]
[BlackClock "0:00:18"]

1. e4 {[%clk 0:03:00]}  e5 {[%clk 0:03:00]} 2. Nf3 {[%clk 0:03:00]}  Nc6 {[%clk 0:03:00]} 3. Nc3 {[%clk 0:03:00]}  Nf6 {[%clk 0:03:00]} 4. d4 {[%clk 0:02:59]}  exd4 {[%clk 0:03:00]} 5. Nxd4 {[%clk 0:02:59]}  Bb4 {[%clk 0:03:00]} 6. Nxc6 {[%clk 0:02:59]}  bxc6 {[%clk 0:02:59]} 7. Bd3 {[%clk 0:02:58]}  O-O {[%clk 0:02:49]} 8. O-O {[%clk 0:02:56]}  d5 {[%clk 0:02:49]} 9. Bg5 {[%clk 0:02:53]}  Bxc3 {[%clk 0:02:38]} 10. bxc3 {[%clk 0:02:52]}  dxe4 {[%clk 0:02:35]} 11. Bxf6 {[%clk 0:02:50]}  Qxf6 {[%clk 0:02:36]} 12. Bxe4 {[%clk 0:02:45]}  Qxc3 {[%clk 0:02:36]} 13. Rb1 {[%clk 0:02:17]}  Be6 {[%clk 0:02:32]} 14. Rb7 {[%clk 0:02:09]}  Qa5 {[%clk 0:02:15]} 15. a3 {[%clk 0:02:03]}  Rad8 {[%clk 0:02:05]} 16. Qf3 {[%clk 0:01:59]}  c5 {[%clk 0:01:57]} 17. Qg3 {[%clk 0:01:51]}  Rd4 {[%clk 0:01:45]} 18. Bc6 {[%clk 0:01:35]}  Rd6 {[%clk 0:01:27]} 19. Be4 {[%clk 0:01:30]}  Rfd8 {[%clk 0:01:23]} 20. h4 {[%clk 0:01:27]}  h6 {[%clk 0:00:58]} 21. f4 {[%clk 0:01:18]}  Qd2 {[%clk 0:00:50]} 22. Re1 {[%clk 0:00:50]}  Qd4+ {[%clk 0:00:32]} 23. Kh2 {[%clk 0:00:49]}  a5 {[%clk 0:00:15]} 24. Rxc7 {[%clk 0:00:47]}  R6d7 {[%clk 0:00:15]} 25. Rxd7 {[%clk 0:00:44]}  Rxd7 {[%clk 0:00:16]} 26. f5 {[%clk 0:00:45]}  Bc4 {[%clk 0:00:15]} 27. Bc6 {[%clk 0:00:42]}  Rd8 {[%clk 0:00:14]} 28. Qc7 {[%clk 0:00:40]}  Qxh4+ {[%clk 0:00:13]} 29. Kg1 {[%clk 0:00:38]}  Qxe1+ {[%clk 0:00:13]} 30. Kh2 {[%clk 0:00:39]}  Qh4+ {[%clk 0:00:14]} 31. Kg1 {[%clk 0:00:39]}  Qd4+ {[%clk 0:00:14]} 32. Kh2 {[%clk 0:00:38]}  Qd6+ {[%clk 0:00:15]} 33. Qxd6 {[%clk 0:00:36]}  Rxd6 {[%clk 0:00:16]} 34. Bf3 {[%clk 0:00:37]}  Ba2 {[%clk 0:00:15]} 35. f6 {[%clk 0:00:38]}  Rxf6 {[%clk 0:00:15]} 36. Kg3 {[%clk 0:00:38]}  Bb1 {[%clk 0:00:16]} 37. Be2 {[%clk 0:00:37]}  Bxc2 {[%clk 0:00:16]} 38. Bc4 {[%clk 0:00:38]}  a4 {[%clk 0:00:16]} 39. Bb3 {[%clk 0:00:39]}  Bxb3 {[%clk 0:00:17]} 40. Kg4 {[%clk 0:00:38]}  Be6+ {[%clk 0:00:17]} 41. Kh5 {[%clk 0:00:39]}  c4 {[%clk 0:00:18]} 42. g4 {[%clk 0:00:40]}  c3 {[%clk 0:00:18]} 43. g5 {[%clk 0:00:41]}  c2 {[%clk 0:00:19]} 44. gxf6 {[%clk 0:00:40]}  g6+ {[%clk 0:00:19]} 45. Kxh6 {[%clk 0:00:40]}  c1=B# {[%clk 0:00:18]} 0-1


[Site "https://www.chess.com"]

[Event "Titled Tuesday Blitz March 22 Early 2022"]
[White "Cupid, Kevin"]
[Black "Bodnar, Nikolay"]
[WhiteFideId "7700512"]
[BlackFideId "14106469"]
[WhiteElo "2096"]
[BlackElo "2296"]
[Result "0-1"]
[Round "02"]
[TimeControl "180+1"]
[Date "2022.03.22"]
[WhiteClock "0:00:12"]
[BlackClock "0:00:12"]

1. d4 {[%clk 0:03:00]}  d5 {[%clk 0:02:59]} 2. c4 {[%clk 0:02:59]}  e6 {[%clk 0:03:00]} 3. Nc3 {[%clk 0:03:00]}  c6 {[%clk 0:02:59]} 4. e3 {[%clk 0:02:57]}  Nf6 {[%clk 0:02:58]} 5. Qc2 {[%clk 0:02:57]}  Nbd7 {[%clk 0:02:57]} 6. a3 {[%clk 0:02:55]}  Bd6 {[%clk 0:02:55]} 7. b3 {[%clk 0:02:51]}  O-O {[%clk 0:02:52]} 8. Bb2 {[%clk 0:02:51]}  a6 {[%clk 0:02:37]} 9. Nf3 {[%clk 0:02:50]}  b5 {[%clk 0:02:35]} 10. Be2 {[%clk 0:02:39]}  Qe7 {[%clk 0:02:26]} 11. O-O {[%clk 0:02:35]}  e5 {[%clk 0:02:26]} 12. cxd5 {[%clk 0:02:32]}  cxd5 {[%clk 0:02:24]} 13. dxe5 {[%clk 0:02:31]}  Nxe5 {[%clk 0:02:23]} 14. Nd4 {[%clk 0:02:27]}  Bd7 {[%clk 0:02:16]} 15. Nf5 {[%clk 0:02:20]}  Bxf5 {[%clk 0:02:15]} 16. Qxf5 {[%clk 0:02:21]}  Rfd8 {[%clk 0:02:04]} 17. Rfd1 {[%clk 0:02:17]}  Qe6 {[%clk 0:01:37]} 18. Qxe6 {[%clk 0:01:28]}  fxe6 {[%clk 0:01:38]} 19. h3 {[%clk 0:01:26]}  Rac8 {[%clk 0:01:23]} 20. Rac1 {[%clk 0:01:11]}  Ned7 {[%clk 0:01:22]} 21. Bd3 {[%clk 0:01:02]}  Be5 {[%clk 0:01:10]} 22. f4 {[%clk 0:00:44]}  Bb8 {[%clk 0:01:08]} 23. Ne2 {[%clk 0:00:38]}  Nc5 {[%clk 0:01:06]} 24. Bc2 {[%clk 0:00:38]}  Nce4 {[%clk 0:01:02]} 25. Nd4 {[%clk 0:00:38]}  e5 {[%clk 0:00:54]} 26. Nf5 {[%clk 0:00:38]}  Re8 {[%clk 0:00:48]} 27. Bxe4 {[%clk 0:00:34]}  Rxc1 {[%clk 0:00:45]} 28. Bxc1 {[%clk 0:00:20]}  dxe4 {[%clk 0:00:42]} 29. g3 {[%clk 0:00:14]}  exf4 {[%clk 0:00:35]} 30. gxf4 {[%clk 0:00:14]}  g6 {[%clk 0:00:29]} 31. Bb2 {[%clk 0:00:12]}  gxf5 {[%clk 0:00:26]} 32. Bxf6 {[%clk 0:00:11]}  Kf7 {[%clk 0:00:26]} 33. Bd4 {[%clk 0:00:10]}  Rd8 {[%clk 0:00:25]} 34. Rc1 {[%clk 0:00:10]}  Bxf4 {[%clk 0:00:24]} 35. Kf2 {[%clk 0:00:10]}  Bd6 {[%clk 0:00:22]} 36. Rc6 {[%clk 0:00:10]}  Bxa3 {[%clk 0:00:20]} 37. Rxa6 {[%clk 0:00:10]}  Be7 {[%clk 0:00:21]} 38. Ra7 {[%clk 0:00:10]}  Ke6 {[%clk 0:00:21]} 39. Rb7 {[%clk 0:00:10]}  Rd5 {[%clk 0:00:21]} 40. Rb6+ {[%clk 0:00:10]}  Kf7 {[%clk 0:00:21]} 41. Rh6 {[%clk 0:00:10]}  Kg8 {[%clk 0:00:20]} 42. Re6 {[%clk 0:00:10]}  Bf8 {[%clk 0:00:21]} 43. Kg3 {[%clk 0:00:09]}  Rd6 {[%clk 0:00:18]} 44. Re8 {[%clk 0:00:08]}  Kf7 {[%clk 0:00:18]} 45. Rxf8+ {[%clk 0:00:08]}  Kxf8 {[%clk 0:00:19]} 46. Bc5 {[%clk 0:00:09]}  Ke7 {[%clk 0:00:20]} 47. Kf4 {[%clk 0:00:09]}  Ke6 {[%clk 0:00:20]} 48. Bxd6 {[%clk 0:00:10]}  Kxd6 {[%clk 0:00:21]} 49. Kxf5 {[%clk 0:00:10]}  Kd5 {[%clk 0:00:22]} 50. Kf4 {[%clk 0:00:11]}  Kc5 {[%clk 0:00:22]} 51. Kxe4 {[%clk 0:00:11]}  Kb4 {[%clk 0:00:23]} 52. Kd5 {[%clk 0:00:12]}  Kxb3 {[%clk 0:00:24]} 53. e4 {[%clk 0:00:12]}  b4 {[%clk 0:00:24]} 54. e5 {[%clk 0:00:13]}  Kc3 {[%clk 0:00:22]} 55. e6 {[%clk 0:00:14]}  b3 {[%clk 0:00:23]} 56. e7 {[%clk 0:00:15]}  b2 {[%clk 0:00:24]} 57. e8=Q {[%clk 0:00:15]}  b1=Q {[%clk 0:00:25]} 58. Qc6+ {[%clk 0:00:15]}  Kd2 {[%clk 0:00:21]} 59. Qc4 {[%clk 0:00:13]}  Qf5+ {[%clk 0:00:20]} 60. Kd4 {[%clk 0:00:13]}  Qxh3 {[%clk 0:00:19]} 61. Qb4+ {[%clk 0:00:13]}  Ke2 {[%clk 0:00:18]} 62. Qb2+ {[%clk 0:00:13]}  Kf3 {[%clk 0:00:17]} 63. Qc3+ {[%clk 0:00:12]}  Kg4 {[%clk 0:00:17]} 64. Qc8+ {[%clk 0:00:11]}  Kg3 {[%clk 0:00:17]} 65. Qc3+ {[%clk 0:00:11]}  Kh2 {[%clk 0:00:17]} 66. Qd2+ {[%clk 0:00:11]}  Kh1 {[%clk 0:00:17]} 67. Qe1+ {[%clk 0:00:10]}  Kg2 {[%clk 0:00:17]} 68. Qd2+ {[%clk 0:00:10]}  Kf3 {[%clk 0:00:16]} 69. Qe3+ {[%clk 0:00:10]}  Kg4 {[%clk 0:00:16]} 70. Qe6+ {[%clk 0:00:10]}  Kh4 {[%clk 0:00:15]} 71. Qh6+ {[%clk 0:00:10]}  Kg3 {[%clk 0:00:15]} 72. Qe3+ {[%clk 0:00:10]}  Kg4 {[%clk 0:00:15]} 73. Qe6+ {[%clk 0:00:10]}  Kg3 {[%clk 0:00:15]} 74. Qe3+ {[%clk 0:00:10]}  Kh2 {[%clk 0:00:09]} 75. Qf2+ {[%clk 0:00:09]}  Kh1 {[%clk 0:00:08]} 76. Qe1+ {[%clk 0:00:09]}  Kg2 {[%clk 0:00:08]} 77. Qe2+ {[%clk 0:00:10]}  Kg1 {[%clk 0:00:09]} 78. Qe1+ {[%clk 0:00:10]}  Qf1 {[%clk 0:00:07]} 79. Qg3+ {[%clk 0:00:11]}  Qg2 {[%clk 0:00:07]} 80. Qe3+ {[%clk 0:00:10]}  Qf2 {[%clk 0:00:08]} 81. Qxf2+ {[%clk 0:00:11]}  Kxf2 {[%clk 0:00:09]} 82. Ke4 {[%clk 0:00:11]}  Kg3 {[%clk 0:00:09]} 83. Ke3 {[%clk 0:00:11]}  h5 {[%clk 0:00:09]} 84. Ke2 {[%clk 0:00:11]}  Kg2 {[%clk 0:00:10]} 85. Ke3 {[%clk 0:00:11]}  h4 {[%clk 0:00:11]} 86. Kf4 {[%clk 0:00:12]}  h3 {[%clk 0:00:11]} 87. Kg4 {[%clk 0:00:12]}  h2 {[%clk 0:00:12]} 0-1


[Site "https://www.chess.com"]